Cogmind - Beta 9.4 *** ADVENTURER MODE // 2020.02.04 @ 07:09:10 Player: Amao Result: Destroyed by DN-MMP(g) with Beamcaster Performance ------------- Evolutions (3) 1500 Regions Visited (7) 1400 Robots Destroyed (74) 370 Value Destroyed (2712) 2712 Prototype IDs (0) 0 Alien Tech Used (0) 0 Bonus (276) 276 TOTAL SCORE: 6258 Bonus ------- Pacifist 200 High Alert Combat Kills 76 Cogmind --------- Core Integrity 0/700 Matter 300/300 Energy 100/100 System Corruption 2% Temperature Cool (448) Movement Core (50) Location -7/Lower Caves Parts ------- > --- POWER (1) -------- (None) > --- PROPULSION (3) --- (None) > --- UTILITY (5) ------ (None) > --- WEAPON (4) ------- (None) > --- INVENTORY (4) ---- Light Deuterium Engine Wheel Kinecellerator Heavy Ion Cannon Peak State ------------ > --- POWER ------------ Light Deuterium Engine > --- PROPULSION ------- Wheel Wheel Wheel > --- UTILITY ---------- Improved Heat Sink Small Storage Unit Small Storage Unit Advanced Targeting Computer Medium Reactive Plating > --- WEAPON ----------- Shock Rifle Heavy Laser Heavy Plasma Cannon Advanced Assault Cannon > --- INVENTORY -------- Light Deuterium Engine Wheel Compact Wheel Kinecellerator Pulse Rifle Heavy Ion Cannon Ripper [Rating: 36] Favorites ----------- Power Ion Engine Engine Ion Engine Power Core Light Nuclear Core Propulsion Wheel Treads Light Treads Wheel Wheel Utility Small Storage Unit Device Advanced Heat Sink Storage Small Storage Unit Processor Advanced Targeting Computer Protection Insulated Plating Weapon Flak Cannon Energy Gun Particle Gun Energy Cannon Particle Cannon Ballistic Gun Heavy Assault Rifle Ballistic Cannon Flak Cannon Launcher Rocket Launcher Build | -11 -10 -9 -9 -8 -7 -7 -7 ------- Run | Scr Mat Mat Min Mat Fac Low Low Slots Evolved 6 | . . 2 . 2 2 . . Power . | . . . . . . . . Propulsion 1 | . . 1 . . . . . Utility 3 | . . . . 1 2 . . Weapon 2 | . . 1 . 1 . . . Parts Attached 54 | 5 3 5 1 13 21 4 2 Power 4 | 1 . . . 1 1 1 . Engine 3 | 1 . . . . 1 1 . Core 1 | . . . . 1 . . . Reactor . | . . . . . . . . Propulsion 15 | 2 1 1 . 3 7 1 . Treads 4 | . . . . 3 1 . . Leg . | . . . . . . . . Wheel 11 | 2 1 1 . . 6 1 . Hover . | . . . . . . . . Flight . | . . . . . . . . Utility 12 | . 2 1 . 2 6 1 . Device 5 | . 1 . . . 4 . . Storage 2 | . 1 . . 1 . . . Processor 1 | . . . . . 1 . . Hackware . | . . . . . . . . Protection 4 | . . 1 . 1 1 1 . Artifact . | . . . . . . . . Weapon 23 | 2 . 3 1 7 7 1 2 Energy Gun 10 | 2 . 1 . 2 3 1 1 Energy Cannon 6 | . . 1 1 2 1 . 1 Ballistic Gun 3 | . . 1 . 1 1 . . Ballistic Cannon 3 | . . . . 2 1 . . Launcher 1 | . . . . . 1 . . Special Weapon . | . . . . . . . . Impact Weapon . | . . . . . . . . Slashing Weapon . | . . . . . . . . Piercing Weapon . | . . . . . . . . Special Melee Weapon . | . . . . . . . . Unidentified Prototypes . | . . . . . . . . Parts Lost 39 | . . 1 2 6 14 3 13 Power 3 | . . . . . 1 1 1 Propulsion 11 | . . . . 2 5 1 3 Utility 9 | . . . . 1 3 . 5 Weapon 16 | . . 1 2 3 5 1 4 Highest Loss Streak 13 | . . 1 2 3 6 3 13 Average Slot Usage (%) 88 | . 81 88 96 88 85 95 91 Engine 6 | . 14 11 11 7 2 6 6 Core 1 | . . . . 1 2 . . Treads 8 | . . . . 15 10 . . Wheel 12 | . 27 27 33 6 4 22 19 Device 4 | . 3 5 . . 9 8 6 Storage 14 | . 7 11 11 17 15 15 14 Processor 3 | . . . . . 7 7 7 Protection 5 | . . 5 11 7 3 5 6 Energy Gun 6 | . 28 15 7 3 3 3 11 Energy Cannon 7 | . . 6 11 15 . 7 6 Ballistic Gun 6 | . . 4 11 9 5 7 1 Ballistic Cannon 6 | . . . . 2 12 7 6 Launcher 1 | . . . . . 3 . . Naked Turns 1 | . . . . . . . 1 Heaviest Build 57 | 8 13 20 20 35 42 55 57 Greatest Support 60 | 20 20 36 36 60 60 30 30 Greatest Overweight (x) 3 | . 1 . . 2 3 2 3 Average Overweight (x) . | . . . . . . 1 1 Largest Inventory Capacity 8 | 4 6 6 6 8 8 8 8 Average Capacity 7 | 4 5 6 6 7 8 8 7 Most Carried 8 | 2 6 6 6 8 8 8 8 Average Carried 6 | 1 4 5 5 7 6 7 7 Final Capacity 8 | 4 6 6 6 8 8 8 4 Final Carried 8 | 2 5 6 6 7 8 8 4 Class Distribution -------------------- 38% | Scavenger-Gunner 17% | Tank 16% | Mutant 11% | Scavenger-Tank 9% | Gunner 7% | Scavenger-Mutant Dominant Class ---------------- Mutant | -10/Materials Tank | -9/Materials Tank | -9/Mines Scavenger-Tank | -8/Materials Scavenger-Gunner | -7/Factory Scavenger-Gunner | -7/Lower Caves Scavenger-Gunner | -7/Lower Caves Resources | -11 -10 -9 -9 -8 -7 -7 -7 ----------- Run | Scr Mat Mat Min Mat Fac Low Low Matter Collected 1714 | 224 . 101 31 267 957 134 . Remotely . | . . . . . . . . Salvage Created 2852 | . . 318 108 1219 1018 189 . Parts 149 | . . 13 7 71 54 4 . Haulers Intercepted 1 | . . . . 1 . . . Recyclers Shooed 2 | . . . . 1 1 . . Parts Field Recycled . | . . . . . . . . Retrieved Matter . | . . . . . . . . Parts Self-Destructed 4 | . . . . . . 4 . Prevented . | . . . . . . . . Kills | -11 -10 -9 -9 -8 -7 -7 -7 ------- Run | Scr Mat Mat Min Mat Fac Low Low Combat Hostiles Destroyed 63 | . . 4 4 24 27 4 . Guns 21 | . . 2 1 5 12 1 . Cannons 36 | . . 1 3 18 11 3 . AOE 5 | . . . . 1 4 . . Classes Destroyed 11 | . . 2 2 4 3 . . Worker 1 | . . . . . 1 . . Builder 4 | . . . . 1 3 . . Hauler 1 | . . . . 1 . . . Recycler 4 | . . 1 . 3 . . . Watcher 1 | . . . . . 1 . . Swarmer 16 | . . . 2 7 7 . . Grunt 26 | . . . 2 10 10 4 . Duelist 1 | . . . . 1 . . . Sentry 13 | . . 4 . 5 4 . . Hunter 3 | . . . . 1 2 . . Programmer 4 | . . . . . 4 . . Best Kill Streak 7 | . . 4 2 7 5 4 . Combat Bots Only 5 | . . 3 2 5 4 4 . Max Kills in Single Turn 3 | . . 1 1 3 3 1 . Gunslinging . | . . . . . . . . Exploded 2 | . . . . 1 2 . . Melee . | . . . . . . . . Uniques/NPCs Destroyed . | . . . . . . . . Combat | -11 -10 -9 -9 -8 -7 -7 -7 -------- Run | Scr Mat Mat Min Mat Fac Low Low Damage Taken 4526 | . . 249 142 898 1509 438 1290 Core 862 | . . 54 23 85 156 99 445 Absorbed by Shields 48 | . . . . . 48 . . Core Remaining (%) 91 | 100 100 . 80 84 . . . Volleys Fired 139 | . . 14 9 40 61 9 6 Largest 4 | . . 3 3 4 4 4 4 Hottest 257 | . . 136 136 216 187 221 257 Shots Fired 399 | . . 26 24 109 191 29 20 Gun 199 | . . 18 17 52 93 11 8 Cannon 196 | . . 8 7 57 94 18 12 Launcher 4 | . . . . . 4 . . Special . | . . . . . . . . Kinetic 229 | . . 1 9 48 147 18 6 Thermal 154 | . . 22 15 56 40 11 10 Explosive 4 | . . . . . 4 . . Electromagnetic 12 | . . 3 . 5 . . 4 Robot Hit Streak 39 | . . 24 35 37 39 13 15 Robot Miss Streak 3 | . . . 2 3 3 2 1 Penetration Max . | . . . . . . . . Secondary Targets 1 | . . . . . 1 . . Max Gunslinging Chain 1 | . . . . . 1 . . Shots Hit Robots 307 | . . 24 17 69 161 24 12 Core Hits 186 | . . 9 5 48 106 15 3 Critical Hits 1 | . . . . 1 . . . Critical Kills 1 | . . . . 1 . . . Critical Parts Destroyed . | . . . . . . . . Melee Attacks . | . . . . . . . . Impact . | . . . . . . . . Slashing . | . . . . . . . . Piercing . | . . . . . . . . Sneak Attacks . | . . . . . . . . Combat Hostiles . | . . . . . . . . Follow-up Attacks . | . . . . . . . . Damage Inflicted 5473 | . . 314 198 1559 2708 462 232 Guns 2411 | . . 193 110 446 1393 195 74 Cannons 2630 | . . 121 88 1029 967 267 158 Explosions 417 | . . . . 80 337 . . Melee . | . . . . . . . . Ramming 15 | . . . . 4 11 . . Kinetic 2421 | . . . 51 393 1687 227 63 Thermal 2495 | . . 280 147 1029 673 235 131 Explosive 337 | . . . . . 337 . . Electromagnetic 205 | . . 34 . 133 . . 38 Impact . | . . . . . . . . Slashing . | . . . . . . . . Piercing . | . . . . . . . . Highest Corruption 2 | . . . . . 2 2 2 Average Corruption 1 | . . . . . 1 2 2 Corruption Purged . | . . . . . . . . Effects 6 | . . . . . . 3 3 Message Errors 3 | . . . . . . 2 1 Heat Flow Errors 1 | . . . . . . . 1 Data Loss (minor) 1 | . . . . . . 1 . Targeting Errors 1 | . . . . . . . 1 Overload Shots . | . . . . . . . . Overflow Damage 1 | . . . . 1 . . . Projectiles 1 | . . . . 1 . . . Explosions . | . . . . . . . . Melee . | . . . . . . . . Knockbacks 30 | . . . . 2 26 . 2 Impact . | . . . . . . . . Kinetic 29 | . . . . 2 25 . 2 Secondary 1 | . . . . . 1 . . Self-Inflicted Damage 100 | . . . . . 100 . . Shots 2 | . . . . . 2 . . Rammed 4 | . . . . 1 3 . . Targets Rammed 4 | . . . . 1 3 . . Kicked . | . . . . . . . . Crushed . | . . . . . . . . Highest Temperature 786 | . . 201 424 536 151 307 786 Average Temperature 163 | . . 81 173 169 45 190 508 Received Heat Transfer 1855 | . . 108 78 351 346 324 648 Effects 28 | . . . 3 12 . . 13 Shutdowns 3 | . . . . 1 . . 2 Energy Bleed 2 | . . . . 2 . . . Interference 13 | . . . . 8 . . 5 Damage (minor) 2 | . . . . 1 . . 1 Damage (major) 7 | . . . 3 . . . 4 Damage (core) 1 | . . . . . . . 1 Siege Activations . | . . . . . . . . Robots Corrupted . | . . . . . . . . Combat Hostiles . | . . . . . . . . Parts Fried . | . . . . . . . . Impact Corruptions . | . . . . . . . . Robots Melted 1 | . . 1 . . . . . Combat Hostiles 1 | . . 1 . . . . . Parts Melted 5 | . . 1 1 1 2 . . Heat Transferred 4810 | . . 621 333 1876 1410 346 224 Parts Sabotaged . | . . . . . . . . Parts Stolen . | . . . . . . . . Parts Stripped . | . . . . . . . . Power Chain Reactions 1 | . . . . 1 . . . Missiles Intercepted . | . . . . . . . . Alert | -11 -10 -9 -9 -8 -7 -7 -7 ------- Run | Scr Mat Mat Min Mat Fac Low Low Peak Influence 451 | . 19 200 109 381 451 . . Average Influence 201 | . 14 91 63 208 278 . . Maximum Alert Level 2 | . . 1 . 1 2 . . Low Security (%) 46 | 100 100 93 100 44 16 . . Level 1 47 | . . 6 . 55 67 . . Level 2 6 | . . . . . 15 . . Level 3 . | . . . . . . . . Level 4 . | . . . . . . . . Level 5 . | . . . . . . . . High Security . | . . . . . . . . Max Security . | . . . . . . . . Squads Dispatched 8 | . . . . 2 6 . . Investigation 1 | . . . . . 1 . . Extermination 2 | . . . . . 2 . . Reinforcement 4 | . . . . 2 2 . . Assault . | . . . . . . . . Garrison 1 | . . . . . 1 . . Intercept . | . . . . . . . . Construction Impeded . | . . . . . . . . Haulers Reinforced 1 | . . . . . 1 . . Stealth | -11 -10 -9 -9 -8 -7 -7 -7 --------- Run | Scr Mat Mat Min Mat Fac Low Low Distress Signals 8 | . . 2 . 2 4 . . Communications Jammed . | . . . . . . . . Distress Signals . | . . . . . . . . Times Spotted 94 | . 2 8 5 36 35 4 4 Peak Tracking Total 8 | . 3 5 4 8 5 4 4 Tactical Retreats 6 | . . 2 1 2 1 . . Traps | -11 -10 -9 -9 -8 -7 -7 -7 ------- Run | Scr Mat Mat Min Mat Fac Low Low Traps Triggered 1 | . 1 . . . . . . Indirectly . | . . . . . . . . Trap Hack Attempts . | . . . . . . . . Triggered . | . . . . . . . . Disarmed . | . . . . . . . . Reprogrammed . | . . . . . . . . Reused . | . . . . . . . . Traps Extracted . | . . . . . . . . Installed . | . . . . . . . . Triggered . | . . . . . . . . Machines | -11 -10 -9 -9 -8 -7 -7 -7 ---------- Run | Scr Mat Mat Min Mat Fac Low Low Machines Disabled 7 | . . . 2 2 3 . . Max in Single Turn 2 | . . . 1 1 2 . . Machines Sabotaged . | . . . . . . . . Garrisons Compromised . | . . . . . . . . Overloaded Fab Kills . | . . . . . . . . Fab Network Shutdowns . | . . . . . . . . Hacking | -11 -10 -9 -9 -8 -7 -7 -7 --------- Run | Scr Mat Mat Min Mat Fac Low Low Machines Accessed 12 | . 2 3 . 3 4 . . Terminals 10 | . 2 3 . 1 4 . . Fabricators . | . . . . . . . . Repair Stations 1 | . . . . 1 . . . Recycling Units 1 | . . . . 1 . . . Scanalyzers . | . . . . . . . . Garrison Access . | . . . . . . . . Total Hacks 24 | . 4 4 . 8 8 . . Successful 9 | . 3 4 . 2 . . . Failed 15 | . 1 . . 6 8 . . Catastrophic 1 | . . . . . 1 . . Database Lockouts . | . . . . . . . . Manual 4 | . 1 1 . . 2 . . Terminals 20 | . 4 4 . 4 8 . . Fabricators . | . . . . . . . . Repair Stations 2 | . . . . 2 . . . Recycling Units 2 | . . . . 2 . . . Scanalyzers . | . . . . . . . . Garrison Access . | . . . . . . . . Terminal Hacks 6 | . 2 3 . 1 . . . Emergency Access Points 1 | . . 1 . . . . . Unreport Threat 1 | . . 1 . . . . . Zone Layout 4 | . 2 1 . 1 . . . Fabricator Hacks . | . . . . . . . . Repair Station Hacks . | . . . . . . . . Recycling Unit Hacks 1 | . . . . 1 . . . Retrieve Matter 1 | . . . . 1 . . . Scanalyzer . | . . . . . . . . Garrison Access Hacks . | . . . . . . . . Unauthorized Hacks 6 | . 2 2 . . 2 . . Terminals 2 | . 1 1 . . . . . Track 2 | . 1 1 . . . . . Fabricators . | . . . . . . . . Repair Stations . | . . . . . . . . Recycling Units . | . . . . . . . . Scanalyzers . | . . . . . . . . Garrison Access . | . . . . . . . . Data Cores Recovered . | . . . . . . . . Used . | . . . . . . . . Hacking Detections 10 | . 2 1 . 3 4 . . Full Trace Events 1 | . . . . . 1 . . Feedback Events . | . . . . . . . . Feedback Blocked . | . . . . . . . . Robot Schematics Acquired . | . . . . . . . . Robots Built . | . . . . . . . . Matter . | . . . . . . . . Time . | . . . . . . . . Total Robot Build Rating . | . . . . . . . . Part Schematics Acquired . | . . . . . . . . Parts Built . | . . . . . . . . Matter . | . . . . . . . . Time . | . . . . . . . . Total Part Build Rating . | . . . . . . . . Parts Repaired . | . . . . . . . . Time . | . . . . . . . . Parts Recycled . | . . . . . . . . Recycled Matter . | . . . . . . . . Retrieved Matter . | . . . . . . . . Retrieved Components . | . . . . . . . . Parts Scanalyzed . | . . . . . . . . Part Schematics Acquired . | . . . . . . . . Parts Damaged . | . . . . . . . . Bothacking | -11 -10 -9 -9 -8 -7 -7 -7 ------------ Run | Scr Mat Mat Min Mat Fac Low Low Used RIF Installer . | . . . . . . . . Robots Hacked . | . . . . . . . . Non-combat . | . . . . . . . . Combat . | . . . . . . . . Robot Hacks Applied . | . . . . . . . . Relay Couplers Released . | . . . . . . . . Robots Rewired . | . . . . . . . . Allies Hacked . | . . . . . . . . Hacks Repelled . | . . . . . . . . Allies | -11 -10 -9 -9 -8 -7 -7 -7 -------- Run | Scr Mat Mat Min Mat Fac Low Low Total Allies . | . . . . . . . . Largest Group . | . . . . . . . . Highest-Rated Group . | . . . . . . . . Highest-Rated Ally . | . . . . . . . . Total Orders . | . . . . . . . . Ally Attacks . | . . . . . . . . Total Damage . | . . . . . . . . Kills . | . . . . . . . . Allies Corrupted . | . . . . . . . . Allies Melted . | . . . . . . . . Intel | -11 -10 -9 -9 -8 -7 -7 -7 ------- Run | Scr Mat Mat Min Mat Fac Low Low Robot Analysis Total . | . . . . . . . . Derelict Logs Recovered 2 | . . . 1 . . 1 . Drone Launches . | . . . . . . . . Drone Recoveries . | . . . . . . . . Exploration | -11 -10 -9 -9 -8 -7 -7 -7 ------------- Run | Scr Mat Mat Min Mat Fac Low Low Turns Passed 3463 | 43 157 306 197 1069 1186 311 194 Spaces Moved 2236 | 41 182 243 172 586 562 286 164 Core 4 | 4 . . . . . . . Treads 729 | . . . . 313 416 . . Legs . | . . . . . . . . Wheels 1503 | 37 182 243 172 273 146 286 164 Hover . | . . . . . . . . Flight . | . . . . . . . . Fastest Speed 50 | 50 80 80 86 86 80 90 90 Average Speed 115 | 77 80 83 86 132 153 90 90 Slowest Speed 190 | 80 90 86 86 180 190 100 110 Overloaded Moves . | . . . . . . . . Propulsion Burnouts . | . . . . . . . . Robots Hopped . | . . . . . . . . Cave-ins Triggered . | . . . . . . . . Exploration Rate (%) 28 | 3 34 20 44 40 18 49 19 Regions Visited 7 Branch Regions 3 Pre-discovered Areas 1 | . . . . . . 1 . Known Exits Taken . | . . . . . . . . Unknown Exits Taken 7 | 1 1 1 1 1 1 1 . Scrap Searched 4 | . . . 1 . . 3 . Spaces Dug . | . . . . . . . . Terrain Destroyed 51 | . . . . 8 36 4 3 Melee . | . . . . . . . . Projectile 8 | . . . . 1 . 4 3 AOE 43 | . . . . 7 36 . . Actions | -11 -10 -9 -9 -8 -7 -7 -7 --------- Run | Scr Mat Mat Min Mat Fac Low Low Total 2828 | 52 192 322 202 802 744 317 197 Wait 289 | . . 49 20 120 70 12 18 Move 2229 | 40 181 242 171 585 561 285 164 Hop . | . . . . . . . . Pick Up 79 | 7 7 8 1 25 23 5 3 Fast Attach . | . . . . . . . . Attach 52 | 5 3 5 1 13 20 4 1 Detach 2 | . . . . 2 . . . Swap 2 | . . . . . 1 . 1 Drop 32 | . 1 4 . 16 5 2 4 Fire 139 | . . 14 9 40 61 9 6 Melee . | . . . . . . . . Ram 1 | . . . . . 1 . . Kick . | . . . . . . . . Crush 3 | . . . . 1 2 . . Escape Stasis . | . . . . . . . . Rewire . | . . . . . . . . Trap . | . . . . . . . . Miscellaneous . | . . . . . . . . Route ------- -11/Scrapyard -10/Materials (discovered 2 exits: *Mat / [*Min]) -9/Materials -9/Mines -8/Materials -7/Factory -7/Lower Caves -7/Lower Caves History --------- Turn | Location | Event 4 | -11/Scrapyard | Discovered new exit (range 15) 44 | -11/Scrapyard | Entered Materials 92 | -10/Materials | Discovered new exit (range 8) 107 | -10/Materials | Discovered new exit (range 15) 201 | -10/Materials | Entered another Materials area 201 | -9/Materials | Evolved 2 slots: Propulsion x1, Weapon x1 312 | -9/Materials | Build established: Mutant 446 | -9/Materials | Discovered new exit (range 8) 507 | -9/Materials | Entered Mines 520 | -9/Mines | Learned Materials garrison access intel 685 | -9/Mines | Discovered new exit (range 10) 704 | -9/Mines | Entered Materials 704 | -8/Materials | Evolved 2 slots: Utility x1, Weapon x1 705 | -8/Materials | Loaded intel: 1 garrison access location 1635 | -8/Materials | Lost 3 parts (1u2w) 1735 | -8/Materials | Discovered new exit (range 16) 1773 | -8/Materials | Entered Factory 1773 | -7/Factory | Evolved 2 slots: Utility x2 1904 | -7/Factory | Build established: Scavenger-Gunner 2076 | -7/Factory | Lost 3 parts (1n1u1w) 2275 | -7/Factory | Lost 3 parts (1p1n1w) 2831 | -7/Factory | Garrison activated, responded to threat 2913 | -7/Factory | Lost 6 parts (2n1u3w) 2941 | -7/Factory | Discovered new exit (range 8) 2959 | -7/Factory | Entered Lower Caves 3052 | -7/Lower Caves | Lost 3 parts (1p1n1w) 3253 | -7/Lower Caves | Discovered new exit (range 14) 3270 | -7/Lower Caves | Entered another Lower Caves area 3388 | -7/Lower Caves | Ambushed by wild Derelicts 3445 | -7/Lower Caves | Core integrity fell below 50% 3458 | -7/Lower Caves | Core integrity fell below 20% 3464 | -7/Lower Caves | Destroyed by DN-MMP(g) with Beamcaster Last Messages --------------- Med. Reactive Plating destroyed. Overheating: Core damaged (-119). Wheel destroyed. Overheating: System interference. Adv. Assault Cannon temporarily disabled. Adv. Targeting Computer temporarily disabled. Hvy. Plasma Cannon destroyed. Wheel destroyed. Shock Rifle destroyed. Lgt. Deuterium Engine destroyed. Hvy. Laser destroyed. Imp. Heat Sink destroyed. Adv. Assault Cannon destroyed. Overheating: Sml. Storage Unit damaged (-43). Overheating: Sml. Storage Unit damaged (-13). Overheating: Adv. Targeting Computer damaged (-6). Sml. Storage Unit destroyed. Overheating: Sml. Storage Unit damaged (-1). Sml. Storage Unit destroyed. Adv. Targeting Computer destroyed. Map ----- +----------------------------------------------------+ | ?????????????# #?## #?? #????? | | ?????????????# ##??# # #? #????? | | ?????????????## ###???# ## #? ????? | | ??????????????####?????# ### #####? ???? | | ???????????????????????# #?## ##????? ???? | | ???????????????????????# #??## #??????? # ??? | | ???????????????????????# #???## #???????###? ?? | | ???????????????????????# #????## #?????????????? | | ????????##?????????????# ##????## #?????????????? | | ????????# ######???????# #?????###?????????????? | | ????????# ####????# #?????????????????????? | | ????????# ##???## #?????????????????????? | | ????##### ##???# #?##??????????????????? | | ???## #???# ## ##???#?????????????? | | ??# # ##### # # #?????????????? | | ???# # #?????????????? | | #### #??????????????? | | ## #### ####### #????????????? | | ## ##??####????????##????????????? | | ### #??###????????????????????????? | | #### #### #######??????????????????? | | ### #; ##; ##?????????????????? | | # ##### g g ###???????????????? | | # ##???### g ##??????????????? | | ##??????## [g ####???????????? | | % #????????####; /@ #???????????? | | ### ##???????????############# ##???????????? | | #????####????????????????????????####????????????? | | ?????????????????????????????????????????????????? | | ?????????????????????????????????????????????????? | | ?????????????????????????????????????????????????? | | ?????????????????????????????????????????????????? | | ?????????????????????????????????????????????????? | | ?????????????????????????????????????????????????? | | ?????????????????????????????????????????????????? | | ?????????????????????????????????????????????????? | | ?????????????????????????????????????????????????? | | ?????????????????????????????????????????????????? | | ?????????????????????????????????????????????????? | | ?????????????????????????????????????????????????? | | ?????????????????????????????????????????????????? | | ?????????????????????????????????????????????????? | | ?????????????????????????????????????????????????? | | | | | | | | | | | | | | | +----------------------------------------------------+ Best States ------------- Heat Dissipation 53 Energy Generation 14 Energy Capacity 265 Matter Stores 300 Matter Capacity 300 Sight Range 16 Terrain Scan Range 16 Terrain Scan Density 10 Armor Coverage 225 Resistance: KI 50 Resistance: TH 20 Resistance: EX 20 Resistance: EM 35 Resistance: I 20 Resistance: S 20 Resistance: P 20 Weapon Shielding 33 Evasion (%) 44 Targeting Accuracy 8 Recoil Reduction 3 Kinecelleration 30 Offensive Hacking 10 Item Schematics ----------------- None Robot Schematics ------------------ None Fabricated ------------ Nothing Alien Tech Used ----------------- None Achievements -------------- None Challenges ------------ None Game ------ Seed MatterContainmentThrower Manual? 0 Play Time 00:37:39 Cumulative 24.8 hours Start 2020.02.04 @ 06:09:16 End 2020.02.04 @ 07:09:10 Sessions 1 Manual Loads 0 Difficulty Adventurer Special Mode None Game No. 30 Rogue 10 Adventurer 20 Explorer 0 Win Type - Total 1 Types 1/0/0/0/0/0/0 Lore% 18 Gallery% 31 Achievement% 27 Wizard Run 0 Options --------- ASCII 0 Keyboard 1 Movement Vi Keybinds 0 Fullscreen 1 Font 18/Terminus Map View 76x50 Tactical HUD 0 Map Filters NONE Filters NONE Steam 1 RUN: e39d4586-7190-403a-aafe-ec30c9adc815